lending/lending_fUSD_20241214
["ID","MTS","AMOUNT","RATE_DAILY","PERIOD"]
[345325175,1734149472401,-632.0,0.0002125,2]
[345325176,1734149472410,-2007.0,0.0002125,2]
[345325177,1734149472420,-663.359,0.0002125,2]
[345325178,1734149472429,-1895.0,0.0002125,2]
[345325179,1734149472439,-3765.0,0.0002125,2]
[345325180,1734149472449,-1262.295,0.0002125,2]
[345325181,1734149472459,-817.0,0.0002125,2]
[345325182,1734149472468,-3630.0,0.0002125,2]
[345325183,1734149472479,-930.0,0.0002125,2]
[345325184,1734149472490,-535.0,0.0002125,2]
[345325185,1734149472499,-704.0,0.0002125,2]
[345325186,1734149472509,-16904481.26569019,0.0002125,2]
[345325187,1734149472759,-1860.20373865,0.0002125,2]
[345325188,1734149472770,-22825.70613786,0.0002125,2]
[345325189,1734149472788,-500.0,0.00021248,3]
[345325190,1734149472797,-8761.52160548,0.0002125,2]
[345325191,1734149472809,-509.16789362,0.0002125,2]
[345325192,1734149472829,-2067.21978566,0.0002125,2]
[345325193,1734149472922,-13021.99441796,0.0002125,2]
[345325194,1734149472972,-150.0,0.00020989,2]
[345325195,1734149472983,-500.0,0.00021248,3]
[345325196,1734149472993,-500.0,0.00021249,3]
[345325197,1734149473003,-331.25746809,0.00021249,3]
[345325198,1734149473012,-218647.668996,0.0002125,2]
[345325199,1734149473024,-1769114.42997379,0.0002125,2]
[345325200,1734149473036,-434.25581325,0.0002125,2]
[345325201,1734149473048,-23526.06271843,0.0002125,2]
[345325202,1734149473059,-11804.42752994,0.0002125,2]
[345325203,1734149473071,-11686.42784998,0.0002125,2]
[345325204,1734149473083,-676.34377592,0.0002125,2]
[345325205,1734149473095,-304.33735203,0.0002125,2]
[345325206,1734149473110,-284.253872,0.0002125,2]
[345325207,1734149473121,-2489.69834003,0.0002125,2]
[345325208,1734149473175,-500.0,0.00021095,3]
[345325209,1734149473185,-100.23121034,0.00021095,3]
[345325210,1734149473196,-399.76878966,0.00021095,3]
[345325211,1734149473206,-500.0,0.00021196,3]
[345325212,1734149473216,-500.0,0.00021231,3]
[345325213,1734149473226,-500.0,0.00021246,3]
[345325214,1734149473235,-500.0,0.00021246,3]
[345325215,1734149473245,-500.0,0.00021247,3]
[345325216,1734149473255,-500.0,0.00021248,3]
[345325217,1734149473264,-500.0,0.00021248,3]
[345325218,1734149473274,-11954.21052411,0.0002125,2]
[345325219,1734149473284,-1982.6212,0.0002125,2]
[345325220,1734149473295,-2901.18779003,0.0002125,2]
[345325221,1734149473310,-487.91024865,0.00021249,3]
[345325222,1734149473320,-1381.31530807,0.0002125,2]
[345325223,1734149473379,-6649.85941749,0.0002125,2]
[345325224,1734149473407,-202813.34871966,0.0002125,2]
[345325225,1734149473418,-853.60523194,0.0002125,2]
[345325226,1734149473429,-25031.07175538,0.0002125,2]
[345325227,1734149473440,-36299.99999987,0.0002125,2]
[345325228,1734149473453,-660.00000004,0.0002125,2]
[345325229,1734149544631,2000.0,0.00013123,7]
[345325230,1734149544894,415.8666,0.00013123,7]
[345325231,1734150029591,701.34698804,0.00021,120]
[345325232,1734150064157,255.0,0.00011,2]
[345325236,1734150339124,-1669.26723005,0.00012821,2]
[345325237,1734150367868,145.0,0.00010137,2]
[345325238,1734150367897,15.44,0.00010137,2]
[345325240,1734150428094,-5079.67990838,0.00012721,2]
[345325241,1734150428116,-455.0,0.00012921,5]
[345325242,1734150428138,-255.0,0.00012922,2]
[345325243,1734150428158,-1577.55984783,0.00013122,2]
[345325244,1734150428180,-300.0,0.00013122,2]
[345325245,1734150428202,-150.0,0.00013122,2]
[345325246,1734150428223,-1584.1334,0.00013123,7]
[345325247,1734150428243,-1633.17575754,0.00013123,7]
[345325248,1734150432101,-366.82424246,0.00013123,7]
[345325249,1734150432122,-1654.93146204,0.00013123,7]
[345325250,1734150453095,-336.9001302,0.00012821,2]
[345325251,1734150453117,-335.36013032,0.00013123,7]
[345325255,1734150545124,-300.0,0.00013122,2]
[345325256,1734150545144,-9.70840764,0.00013123,7]
[345325257,1734150545165,-2000.0,0.00013123,7]
[345325258,1734150545186,-2000.0,0.00013123,7]
[345325259,1734150545205,-2000.0,0.00013123,7]
[345325260,1734150545225,-2000.0,0.00013123,7]
[345325261,1734150545245,-2000.0,0.00013123,7]
[345325262,1734150545265,-2000.0,0.00013123,7]
[345325263,1734150545284,-2000.0,0.00013123,7]
[345325264,1734150545304,-2000.0,0.00013123,7]
[345325265,1734150545324,-2000.0,0.00013123,7]
[345325266,1734150545350,-2000.0,0.00013123,7]
[345325267,1734150545370,-2000.0,0.00013123,7]
[345325268,1734150545389,-2000.0,0.00013123,7]
[345325269,1734150545409,-2000.0,0.00013123,7]
[345325270,1734150545432,-2000.0,0.00013123,7]
[345325271,1734150545452,-2000.0,0.00013123,7]
[345325272,1734150545471,-2000.0,0.00013123,7]
[345325273,1734150545493,-6627.0,0.00013151,2]
[345325274,1734150545512,-6626.0,0.00013151,2]
[345325275,1734150545533,-2881.22220575,0.00013151,2]
[345325276,1734150552095,-3448.401656,0.00013151,2]
[345325277,1734150553080,-296.37613825,0.00013151,2]
[345325278,1734150553101,-6208.21274975,0.00013151,2]
[345325279,1734150554104,-417.78725025,0.00013151,2]
[345325280,1734150554126,-6626.0,0.00013151,2]
[345325281,1734150554146,-6626.0,0.00013151,2]
[345325282,1734150554167,-255.0,0.00014224,2]
[345325283,1734150554189,-111.07430587,0.00014389,2]
[345325284,1734150560120,-308.92569413,0.00014389,2]
[345325285,1734150560140,-2554.08128119,0.00015,2]
[345325286,1734150560159,-587.0,0.00015778,2]
[345325287,1734150560180,-150.0,0.00015832,2]
[345325288,1734150560201,-600.0,0.00016318,2]
[345325289,1734150560221,-10946.63007131,0.0001638,2]
[345325304,1734150632447,-2872.58925222,0.0001638,2]
[345325305,1734150632456,-158.4290685,0.0001638,30]
[345325306,1734150632465,-150.0,0.00016403,2]
[345325307,1734150632474,-11754.42640063,0.00017,2]
[345325308,1734150632483,-3658.9833367,0.00017,2]
[345325309,1734150632493,-573.27,0.00017317,2]
[345325310,1734150632504,-500.0,0.00017414,2]
[345325311,1734150632513,-161.612022,0.00017533,2]
[345325312,1734150632523,-157.698602,0.00017533,2]
[345325313,1734150632532,-9483.92369369,0.00017678,2]
[345325314,1734150632544,-47784.71491871,0.00017678,2]
[345325315,1734150632555,-1803.96075961,0.00017678,2]
[345325316,1734150632566,-4784.43499793,0.00017678,2]
[345325317,1734150632692,-25074.89557759,0.00017678,2]
[345325318,1734150632702,-600.0,0.00017688,2]
[345325319,1734150632713,-2501.01705,0.00018,2]
[345325320,1734150632722,-157.698602,0.00018355,2]
[345325321,1734150632731,-250.0,0.00018524,2]
[345325322,1734150632740,-763.67,0.00018705,2]
[345325323,1734150632754,-600.0,0.00018784,2]
[345325324,1734150632763,-3348.94,0.00018918,2]
[345325325,1734150632772,-299.45,0.00019116,2]
[345325326,1734150632781,-161.612022,0.00019177,2]
[345325327,1734150632789,-767.92,0.00019215,2]
[345325328,1734150632798,-200.0,0.00019275,2]
[345325329,1734150632807,-157.698602,0.00019451,2]
[345325330,1734150632816,-573.27,0.00019581,2]
[345325331,1734150632825,-500.0,0.00019606,2]
[345325332,1734150632835,-1000.0,0.00019706,2]
[345325333,1734150632844,-195.13,0.00019706,2]
[345325335,1734150632853,-250.0,0.00019723,2]
[345325337,1734150632862,-940.98,0.00019729,2]
[345325339,1734150632872,-1025.39,0.00019743,2]
[345325341,1734150632881,-11891.89867741,0.00019866,2]
[345325343,1734150632890,-600.0,0.0001988,2]
[345325344,1734150632899,-160.44,0.00019895,2]
[345325347,1734150632910,-767.92,0.00019926,2]
[345325348,1734150632919,-514.0,0.0001997,2]
[345325350,1734150632927,-150.43641336,0.00019973,2]
[345325352,1734150632937,-500.0,0.00019973,2]
[345325354,1734150632946,-30069.22334644,0.00019985,2]
[345325357,1734150632957,-475.22000005,0.00019985,2]
[345325364,1734150638369,-250.0,0.00018479,2]
[345325365,1734150638378,-7739.17572231,0.00019985,2]
[345325366,1734150638389,-3518.27166772,0.00019985,2]
[345325367,1734150638478,-40630.55179038,0.00019985,2]
[345325368,1734150638487,-150.8,0.0001999,2]
[345325369,1734150638496,-150.8,0.0001999,2]
[345325370,1734150638506,-94760.90239055,0.00019999,2]
[345325371,1734150638516,-500.0,0.0002,2]
[345325372,1734150638525,-20000.0,0.0002,2]
[345325373,1734150638534,-125335.12909767,0.0002,2]
[345325374,1734150638543,-1134532.48525969,0.0002,60]
[345325375,1734150638553,-10628.64097994,0.0002,2]
[345325376,1734150638562,-251.936741,0.00020016,2]
[345325377,1734150638572,-167.957827,0.00020016,2]
[345325378,1734150638581,-251.936742,0.00020016,2]
[345325379,1734150638591,-165.95,0.00020021,30]
[345325380,1734150638600,-299.45,0.00020071,2]
[345325381,1734150638609,-150.43641336,0.00020164,2]
[345325382,1734150638618,-292.353,0.0002019,2]
[345325383,1734150638627,-157.698602,0.00020273,2]
[345325384,1734150638636,-150.43641336,0.00020329,2]
[345325385,1734150638644,-7621.68,0.0002037,2]
[345325386,1734150638653,-168.74,0.00020432,2]
[345325387,1734150638662,-4147.06367857,0.0002049,3]
[345325388,1734150638671,-167.957827,0.00020517,2]
[345325389,1734150638680,-150.43641336,0.00020521,2]
[345325390,1734150638688,-837.76449542,0.00020521,2]
[345325391,1734150638697,-652.0,0.00020617,2]
[345325392,1734150638706,-767.92,0.00020637,2]
[345325393,1734150638715,-150.43641336,0.00020685,2]
[345325394,1734150638723,-185.0,0.00020747,2]
[345325395,1734150638732,-150.43641336,0.00020877,2]
[345325396,1734150638741,-4567.99451824,0.00020896,2]
[345325397,1734150638750,-2490.15643088,0.00020898,2]
[345325398,1734150638759,-2490.15643088,0.00020899,2]
[345325399,1734150638769,-4567.99451824,0.00020899,2]
[345325400,1734150638778,-4567.99451824,0.000209,2]
[345325401,1734150638786,-200.0,0.00020903,2]
[345325402,1734150638795,-2490.15643088,0.00020911,2]
[345325403,1734150638804,-4567.99451824,0.00020917,2]
[345325404,1734150638813,-4567.99451824,0.00020924,2]
[345325405,1734150638822,-4567.99451824,0.00020926,2]
[345325406,1734150638831,-2490.15643088,0.00020928,2]
[345325407,1734150638840,-200.0,0.00020937,2]
[345325408,1734150638849,-2490.15643088,0.00020947,2]
[345325409,1734150638859,-150.0,0.00020947,2]
[345325410,1734150638868,-2490.15643088,0.0002095,2]
[345325411,1734150638878,-10692.17,0.00020951,2]
[345325412,1734150638888,-150.99,0.00020951,2]
[345325413,1734150638897,-999.99,0.00020951,2]
[345325414,1734150638906,-150.99,0.00020951,2]
[345325415,1734150638915,-585.41,0.00020951,2]
[345325416,1734150638924,-299.99,0.00020951,7]
[345325417,1734150638933,-14727.99,0.00020951,2]
[345325418,1734150638942,-600.0,0.00020976,2]
[345325419,1734150638951,-7048.97528843,0.0002098,2]
[345325420,1734150638960,-448.52344176,0.00021,2]
[345325421,1734150638969,-2000.0,0.00021,2]
[345325422,1734150638978,-1847.3707,0.00021,2]
[345325423,1734150638987,-167.957827,0.00021017,2]
[345325424,1734150638996,-299.45,0.00021027,2]
[345325425,1734150639007,-150.43641336,0.00021041,2]
[345325426,1734150639020,-38402.5754,0.00021048,2]
[345325427,1734150639029,-3489.05763858,0.0002105,2]
[345325428,1734150639038,-1005.41,0.0002105,2]
[345325429,1734150639047,-200.0,0.0002107,2]
[345325430,1734150639057,-500.0,0.00021095,3]
[345325431,1734150639066,-500.69672084,0.00021095,3]
[345325432,1734150639076,-341.0263,0.00021095,2]
[345325433,1734150639085,-503.79,0.00021095,3]
[345325434,1734150639095,-503.79,0.00021095,3]
[345325435,1734150639104,-503.79,0.00021095,3]
[345325436,1734150639114,-768.45,0.00021095,3]
[345325437,1734150639123,-768.45,0.00021095,3]
[345325438,1734150639133,-768.45,0.00021095,3]
[345325439,1734150639142,-676.21,0.00021095,3]
[345325440,1734150639151,-676.21,0.00021095,3]
[345325441,1734150639161,-676.21,0.00021095,3]
[345325442,1734150639170,-500.0,0.00021095,3]
[345325443,1734150639180,-500.0,0.00021095,3]
[345325444,1734150639189,-500.0,0.00021095,3]
[345325445,1734150639198,-500.0,0.00021095,3]
[345325446,1734150639208,-500.0,0.00021095,3]
[345325447,1734150639217,-500.0,0.00021095,3]
[345325448,1734150639226,-500.0,0.00021095,3]
[345325449,1734150639236,-500.0,0.00021095,3]
[345325450,1734150639246,-500.0,0.00021095,3]
[345325451,1734150639256,-500.0,0.00021095,3]
[345325452,1734150639265,-500.0,0.00021095,3]
[345325453,1734150639275,-500.0,0.00021095,3]
[345325454,1734150639284,-752.54,0.00021095,3]
[345325455,1734150639294,-752.54,0.00021095,3]
[345325456,1734150639305,-752.54,0.00021095,3]
[345325457,1734150639314,-958.37,0.00021095,3]
[345325458,1734150639323,-958.37,0.00021095,3]
[345325459,1734150639333,-958.37,0.00021095,3]
[345325460,1734150639343,-152.05582121,0.00021095,3]
[345325461,1734150639353,-500.0,0.00021095,3]
[345325462,1734150639365,-630.34,0.00021095,3]
[345325463,1734150639374,-523.52,0.00021095,3]
[345325464,1734150639384,-500.0,0.00021095,3]
[345325465,1734150639394,-500.0,0.00021095,3]
[345325466,1734150639403,-500.0,0.00021095,3]
[345325467,1734150639412,-1000.0,0.00021095,3]
[345325468,1734150639421,-1000.0,0.00021095,3]
[345325469,1734150639429,-1000.0,0.00021095,3]
[345325470,1734150639438,-500.0,0.00021095,3]
[345325471,1734150639447,-500.0,0.00021095,3]
[345325472,1734150639455,-500.0,0.00021095,3]
[345325473,1734150639464,-500.0,0.00021095,3]
[345325474,1734150639473,-500.0,0.00021095,3]
[345325475,1734150639482,-606.12,0.00021095,3]
[345325476,1734150639491,-500.0,0.00021095,3]
[345325477,1734150639500,-500.0,0.00021095,3]
[345325478,1734150639510,-337.89,0.00021095,3]
[345325479,1734150639519,-500.0,0.00021095,3]
[345325480,1734150639528,-500.0,0.00021095,3]
[345325481,1734150639538,-500.0,0.00021095,3]
[345325482,1734150639547,-524.11,0.00021095,3]
[345325483,1734150639557,-500.0,0.00021095,3]
[345325484,1734150639567,-391.18041751,0.00021095,3]
[345325485,1734150639576,-500.0,0.00021095,3]
[345325486,1734150639585,-580.02800125,0.00021095,3]
[345325487,1734150639594,-500.0,0.00021095,3]
[345325488,1734150639604,-500.0,0.00021095,3]
[345325489,1734150639613,-534.44,0.00021095,3]
[345325490,1734150639622,-500.0,0.00021095,3]
[345325491,1734150639632,-500.0,0.00021095,3]
[345325492,1734150639641,-500.0,0.00021095,3]
[345325493,1734150639650,-500.0,0.00021095,3]
[345325494,1734150639659,-500.0,0.00021095,3]
[345325495,1734150639668,-500.0,0.00021095,3]
[345325496,1734150639677,-500.0,0.00021095,3]
[345325497,1734150639686,-500.0,0.00021095,3]
[345325498,1734150639695,-500.0,0.00021095,3]
[345325499,1734150639705,-500.0,0.00021095,3]
[345325500,1734150639714,-500.0,0.00021095,3]
[345325501,1734150639723,-500.0,0.00021095,3]
[345325502,1734150639733,-500.0,0.00021095,3]
[345325503,1734150639743,-500.0,0.00021095,3]
[345325504,1734150639752,-500.0,0.00021095,3]
[345325505,1734150639762,-500.0,0.00021095,3]
[345325506,1734150639772,-547.62,0.00021095,3]
[345325507,1734150639782,-500.0,0.00021095,3]
[345325508,1734150639791,-500.0,0.00021095,3]
[345325509,1734150639799,-500.0,0.00021095,3]
[345325510,1734150639809,-500.0,0.00021095,3]
[345325511,1734150639819,-500.0,0.00021095,3]
[345325512,1734150639828,-500.0,0.00021095,3]
[345325513,1734150639838,-385.5,0.00021095,3]
[345325514,1734150639848,-500.0,0.00021095,3]
[345325515,1734150639857,-680.67,0.00021095,3]
[345325516,1734150639866,-162.56,0.00021095,3]
[345325517,1734150639875,-500.0,0.00021095,3]
[345325518,1734150639885,-500.0,0.00021095,3]
[345325519,1734150639894,-645.86,0.00021095,3]
[345325520,1734150639903,-500.0,0.00021095,3]
[345325521,1734150639912,-588.94,0.00021095,3]
[345325522,1734150639921,-161.612022,0.00021095,3]
[345325523,1734150639930,-157.698602,0.00021095,3]
[345325524,1734150639940,-157.698602,0.00021095,3]
[345325525,1734150639949,-500.0,0.00021095,3]
[345325526,1734150639958,-500.0,0.00021095,3]
[345325527,1734150639967,-500.0,0.00021095,3]
[345325528,1734150639977,-500.0,0.00021095,3]
[345325529,1734150639986,-500.0,0.00021095,3]
[345325530,1734150639996,-678.32,0.00021095,3]
[345325531,1734150640005,-500.0,0.00021095,3]
[345325532,1734150640015,-500.0,0.00021095,3]
[345325533,1734150640024,-350.6818,0.00021148,2]
[345325534,1734150640034,-166.4925194,0.00021149,2]
[345325535,1734150640043,-1229.1739,0.00021149,2]
[345325536,1734150640052,-1821.596,0.0002115,2]
[345325537,1734150640061,-195.13,0.00021165,2]
[345325538,1734150640071,-150.8,0.00021186,2]
[345325539,1734150640080,-2000.0,0.00021195,2]
[345325540,1734150640089,-43929.05334716,0.00021196,2]
[345325541,1734150640099,-559.88,0.00021197,3]
[345325542,1734150640109,-500.0,0.00021197,3]
[345325543,1734150640119,-253.89,0.00021197,3]
[345325544,1734150640128,-500.0,0.00021197,3]
[345325545,1734150640137,-500.0,0.00021197,3]
[345325546,1734150640147,-500.0,0.00021197,3]
[345325547,1734150640156,-500.0,0.00021197,3]
[345325548,1734150640165,-161.612022,0.00021197,3]
[345325549,1734150640174,-500.0,0.00021197,3]
[345325550,1734150640184,-500.0,0.00021197,3]
[345325551,1734150640193,-500.0,0.00021197,3]
[345325552,1734150640203,-503.79,0.00021198,3]
[345325553,1734150640212,-768.45,0.00021198,3]
[345325554,1734150640222,-676.21,0.00021198,3]
[345325555,1734150640231,-500.0,0.00021198,3]
[345325556,1734150640241,-500.0,0.00021198,3]
[345325557,1734150640251,-500.0,0.00021198,3]
[345325558,1734150640261,-500.0,0.00021198,3]
[345325559,1734150640271,-752.54,0.00021198,3]
[345325560,1734150640280,-958.37,0.00021198,3]
[345325561,1734150640289,-324.04,0.00021198,3]
[345325562,1734150640299,-1000.0,0.00021198,3]
[345325563,1734150640308,-589.26,0.00021198,3]
[345325564,1734150640318,-500.0,0.00021198,3]
[345325565,1734150640327,-376.3,0.00021198,3]
[345325566,1734150640337,-500.0,0.00021198,3]
[345325567,1734150640346,-500.0,0.00021198,3]
[345325568,1734150640356,-4799.42051466,0.00021198,14]
[345325569,1734150640370,-454.7,0.000212,2]
[345325570,1734150640379,-500.0,0.00021234,3]
[345325571,1734150640389,-500.0,0.00021234,3]
[345325572,1734150640398,-500.0,0.00021234,3]
[345325573,1734150640407,-500.0,0.00021234,3]
[345325574,1734150640416,-500.0,0.00021234,3]
[345325575,1734150640426,-500.0,0.00021234,3]
[345325576,1734150640435,-500.0,0.00021234,3]
[345325577,1734150640444,-500.0,0.00021234,3]
[345325578,1734150640610,-500.0,0.00021234,3]
[345325579,1734150640620,-500.0,0.00021234,3]
[345325580,1734150640630,-500.0,0.00021234,3]
[345325581,1734150640639,-500.0,0.00021234,3]
[345325582,1734150640648,-500.0,0.00021234,3]
[345325583,1734150640657,-500.0,0.00021234,3]
[345325584,1734150640666,-500.0,0.00021234,3]
[345325585,1734150640675,-500.0,0.00021234,3]
[345325586,1734150640685,-500.0,0.00021234,2]
[345325587,1734150640694,-500.0,0.00021234,3]
[345325588,1734150640703,-500.0,0.00021234,3]
[345325589,1734150640712,-500.0,0.00021234,3]
[345325590,1734150640721,-718.5,0.00021234,3]
[345325591,1734150640731,-748.98,0.00021234,3]
[345325592,1734150640740,-663.39,0.00021234,3]
[345325593,1734150640750,-500.0,0.00021234,3]
[345325594,1734150640761,-500.0,0.00021234,3]
[345325595,1734150640769,-500.0,0.00021234,3]
[345325596,1734150640779,-607.74,0.00021234,3]
[345325597,1734150640788,-500.0,0.00021234,3]
[345325598,1734150640797,-824.89,0.00021234,3]
[345325599,1734150640807,-4569.97,0.00021234,3]
[345325600,1734150640816,-500.0,0.00021234,3]
[345325601,1734150640825,-500.0,0.00021234,3]
[345325602,1734150640834,-500.0,0.00021234,3]
[345325603,1734150640844,-826.89,0.00021234,3]
[345325604,1734150640853,-500.0,0.00021234,3]
[345325605,1734150640862,-500.0,0.00021234,3]
[345325606,1734150640871,-500.0,0.00021234,3]
[345325607,1734150640881,-500.0,0.00021234,3]
[345325608,1734150640890,-500.0,0.00021234,3]
[345325609,1734150640899,-961.97,0.00021234,3]
[345325610,1734150640908,-500.0,0.00021234,3]
[345325611,1734150640918,-500.0,0.00021234,3]
[345325612,1734150640927,-505.28514223,0.00021234,3]
[345325613,1734150640937,-500.0,0.00021234,3]
[345325614,1734150640946,-500.0,0.00021234,3]
[345325615,1734150640955,-500.0,0.00021234,3]
[345325616,1734150640964,-500.0,0.00021234,3]
[345325617,1734150640974,-1000.0,0.00021234,3]
[345325618,1734150640983,-500.0,0.00021234,3]
[345325619,1734150640991,-500.0,0.00021234,3]
[345325620,1734150641001,-500.0,0.00021234,3]
[345325621,1734150641011,-500.0,0.00021234,3]
[345325622,1734150641020,-1160.88,0.00021234,3]
[345325623,1734150641029,-500.0,0.00021234,3]
[345325624,1734150641038,-500.0,0.00021234,3]
[345325625,1734150641048,-500.0,0.00021234,3]
[345325626,1734150641057,-500.0,0.00021234,3]
[345325627,1734150641067,-500.0,0.00021234,3]
[345325628,1734150641075,-500.0,0.00021234,3]
[345325629,1734150641085,-500.0,0.00021234,3]
[345325630,1734150641094,-500.0,0.00021234,3]
[345325631,1734150641103,-500.0,0.00021234,3]
[345325632,1734150641112,-500.0,0.00021234,3]
[345325633,1734150641121,-500.0,0.00021234,3]
[345325634,1734150641130,-500.0,0.00021234,3]
[345325635,1734150641139,-500.0,0.00021234,3]
[345325636,1734150641148,-500.0,0.00021234,3]
[345325637,1734150641158,-500.0,0.00021234,3]
[345325638,1734150641168,-500.0,0.00021234,3]
[345325639,1734150641177,-500.0,0.00021234,3]
[345325640,1734150641186,-500.0,0.00021234,3]
[345325641,1734150641195,-500.0,0.00021234,3]
[345325642,1734150641204,-500.0,0.00021234,3]
[345325643,1734150641213,-500.0,0.00021234,3]
[345325644,1734150641223,-500.0,0.00021234,3]
[345325645,1734150641237,-500.0,0.00021234,3]
[345325646,1734150641246,-500.0,0.00021234,3]
[345325647,1734150641255,-500.0,0.00021234,3]
[345325648,1734150641264,-500.0,0.00021234,3]
[345325649,1734150641273,-500.0,0.00021234,3]
[345325650,1734150641282,-500.0,0.00021234,3]
[345325651,1734150641291,-500.0,0.00021234,3]
[345325652,1734150641299,-500.0,0.00021234,3]
[345325653,1734150641308,-999.3,0.00021234,3]
[345325654,1734150641317,-153.0,0.00021235,2]
[345325655,1734150641326,-206.0,0.0002124,2]
[345325656,1734150641335,-206.0,0.0002124,2]
[345325657,1734150641344,-206.0,0.0002124,2]
[345325658,1734150641355,-84055.91123384,0.0002124,2]
[345325659,1734150641368,-503.79,0.00021244,3]
[345325660,1734150641377,-768.45,0.00021244,3]
[345325661,1734150641386,-676.21,0.00021244,3]
[345325662,1734150641394,-500.0,0.00021244,3]
[345325663,1734150641403,-500.0,0.00021244,3]
[345325664,1734150641412,-500.0,0.00021244,3]
[345325665,1734150641421,-500.0,0.00021244,3]
[345325666,1734150641430,-752.54,0.00021244,3]
[345325667,1734150641439,-958.37,0.00021244,3]
[345325668,1734150641448,-1000.0,0.00021244,3]
[345325669,1734150641457,-500.0,0.00021244,3]
[345325670,1734150641466,-500.0,0.00021244,3]
[345325671,1734150641475,-500.0,0.00021244,3]
[345325672,1734150641484,-157.698602,0.00021244,3]
[345325673,1734150641493,-1001.98,0.00021245,2]
[345325674,1734150641502,-161.612022,0.00021245,3]
[345325675,1734150641512,-157.698602,0.00021245,3]
[345325676,1734150641521,-157.698602,0.00021245,3]
[345325677,1734150641531,-503.79,0.00021246,3]
[345325678,1734150641540,-503.79,0.00021246,3]
[345325679,1734150641549,-768.45,0.00021246,3]
[345325680,1734150641558,-768.45,0.00021246,3]
[345325681,1734150641567,-676.21,0.00021246,3]
[345325682,1734150641575,-676.21,0.00021246,3]
[345325683,1734150641584,-500.0,0.00021246,3]
[345325684,1734150641593,-500.0,0.00021246,3]
[345325685,1734150641602,-500.0,0.00021246,3]
[345325686,1734150641611,-500.0,0.00021246,3]
[345325687,1734150641620,-500.0,0.00021246,3]
[345325688,1734150641629,-500.0,0.00021246,3]
[345325689,1734150641638,-500.0,0.00021246,3]
[345325690,1734150641647,-500.0,0.00021246,3]
[345325691,1734150641659,-752.54,0.00021246,3]
[345325692,1734150641670,-752.54,0.00021246,3]
[345325693,1734150641679,-958.37,0.00021246,3]
[345325694,1734150641687,-958.37,0.00021246,3]
[345325695,1734150641696,-1000.0,0.00021246,3]
[345325696,1734150641705,-1000.0,0.00021246,3]
[345325697,1734150641714,-500.0,0.00021246,3]
[345325698,1734150641723,-500.0,0.00021246,3]
[345325699,1734150641733,-500.0,0.00021246,3]
[345325700,1734150641742,-500.0,0.00021246,3]
[345325701,1734150641751,-322.12,0.00021246,3]
[345325702,1734150641761,-161.612022,0.00021246,3]
[345325703,1734150641770,-157.698602,0.00021246,3]
[345325704,1734150641780,-157.698602,0.00021246,3]
[345325705,1734150641789,-150.0,0.00021247,2]
[345325706,1734150641799,-503.79,0.00021247,3]
[345325707,1734150641808,-768.45,0.00021247,3]
[345325708,1734150641817,-676.21,0.00021247,3]
[345325709,1734150641826,-500.0,0.00021247,3]
[345325710,1734150641835,-500.0,0.00021247,3]
[345325711,1734150641844,-500.0,0.00021247,3]
[345325712,1734150641853,-500.0,0.00021247,3]
[345325713,1734150641862,-752.54,0.00021247,3]